bitfinex/quotes_SOLUSD_20260308
["timestamp","ask_amount","ask_price","bid_price","bid_amount"]
[1772999812269,0.0431311,82.418,82.385,0.47843445]
[1772999817972,0.0431311,82.409,82.375,12.61800401]
[1772999818180,0.0431311,82.399,82.375,12.61800401]
[1772999818972,0.0431311,82.399,82.346,0.28432314]
[1772999818973,12.17920071,82.399,82.376,0.47843445]
[1772999819172,0.0431311,82.398,82.376,0.47843445]
[1772999821774,0.0431311,82.398,82.369,0.47843445]
[1772999828689,0.0431311,82.398,82.371,0.49692108]
[1772999830989,0.0431311,82.398,82.373,0.49692108]
[1772999832169,42.01422041,82.409,82.374,0.5]
[1772999834876,42.01422041,82.409,82.376,0.5]
[1772999837997,42.01422041,82.409,82.378,0.5]
[1772999839900,4.5245116,82.4,82.378,0.5]
[1772999840083,12.13606961,82.399,82.378,0.5]
[1772999841788,12.13474419,82.408,82.378,0.5]
[1772999842776,0.28432314,82.416,82.38,0.5]
[1772999843184,0.14216157,82.416,82.38,0.5]
[1772999846708,4.5245116,82.41,82.38,0.5]
[1772999848404,42.46799732,82.415,82.38,0.5]
[1772999850203,42.46799732,82.415,82.382,0.5]
[1772999850901,4.5245116,82.41,82.382,0.5]
[1772999853114,12.13459694,82.409,82.382,0.5]
[1772999853310,42.47108931,82.409,82.382,0.5]
[1772999857818,12.13312464,82.419,82.384,0.5]
[1772999858202,42.46593624,82.419,82.384,0.5]
[1772999861122,42.46593624,82.419,82.386,0.5]
[1772999867328,4.52631898,82.41,82.386,0.5]
[1772999867526,42.46593624,82.419,82.386,0.5]
[1772999878236,0.28432314,82.418,82.364,0.5]
[1772999878438,4.52631898,82.41,82.365,0.5]
[1772999879240,42.47108931,82.409,82.367,0.5]
[1772999881331,42.47108931,82.409,82.369,0.5]
[1772999882128,12.13459694,82.409,82.369,0.5]
[1772999886247,42.46629325,82.419,82.371,0.5]
[1772999889252,0.1,82.42,82.373,0.5]
[1772999890255,0.1,82.42,82.375,0.5]
[1772999892750,4.62631898,82.42,82.377,0.5]
[1772999894955,12.13312464,82.419,82.378,12.13916336]
[1772999895158,12.13312464,82.419,82.379,0.5]
[1772999897158,0.1,82.42,82.381,0.5]
[1772999899560,0.1,82.42,82.383,0.5]
[1772999900938,0.1,82.42,82.384,42.48397746]
[1772999901140,0.1,82.42,82.385,0.5]
[1772999904758,0.1,82.42,82.387,0.5]
[1772999907044,0.1,82.42,82.389,0.5]
[1772999908665,4.62631898,82.42,82.389,0.5]
[1772999908851,0.1,82.42,82.389,0.5]
[1772999909458,0.1,82.42,82.391,0.5]
[1772999912358,0.1,82.42,82.393,0.5]
[1772999915573,0.1,82.42,82.395,0.5]
[1772999928661,0.1,82.42,82.391,0.5]
[1772999931107,0.1,82.42,82.393,0.5]
[1772999934165,0.1,82.42,82.395,0.5]
[1772999936883,0.1,82.42,82.393,12.13686438]
[1772999937187,0.1,82.42,82.368,0.5]
[1772999937369,0.14216157,82.409,82.368,0.5]
[1772999937565,0.1,82.42,82.368,0.5]
[1772999937566,4.52444073,82.41,82.368,0.5]
[1772999938385,4.52444073,82.4,82.37,0.5]
[1772999938605,4.52444073,82.41,82.37,0.5]
[1772999939688,42.47108931,82.409,82.372,0.5]
[1772999939876,4.52444073,82.4,82.372,0.5]
[1772999942076,4.52444073,82.41,82.374,0.5]
[1772999947391,12.13459694,82.409,82.375,12.13960546]
[1772999947694,12.13459694,82.409,82.376,0.5]
[1772999949694,12.13459694,82.409,82.378,0.5]
[1772999951096,42.47108931,82.409,82.378,0.5]
[1772999951703,12.13312464,82.419,82.352,0.5]
[1772999951870,0.1,82.42,82.355,0.5]
[1772999952276,12.23300358,82.42,82.355,0.5]
[1772999953376,0.1,82.42,82.36,0.28432314]
[1772999953575,0.1,82.42,82.361,0.5]
[1772999953991,4.62444073,82.42,82.361,0.5]
[1772999954174,0.1,82.42,82.361,0.5]
[1772999957092,42.46181469,82.427,82.397,0.5]
[1772999957802,12.13194705,82.427,82.397,0.5]
[1772999961195,30.32617904,82.438,82.399,0.5]
[1772999963498,30.32617904,82.438,82.401,0.5]
[1772999967203,30.32617904,82.438,82.403,0.5]
[1772999969284,30.32617904,82.438,82.405,0.5]
[1772999973116,30.32617904,82.438,82.407,0.5]
[1772999976204,30.32617904,82.438,82.409,0.5]
[1772999976524,12.12957757,82.444,82.409,0.5]
[1772999976697,12.12812812,82.453,82.409,0.5]
[1772999977412,0.1,82.46,82.41,0.5]
[1772999977708,12.12730742,82.459,82.41,0.5]
[1772999978211,0.1,82.46,82.408,103.14532567]
[1772999978212,0.1,82.46,82.413,0.5]
[1772999979813,0.1,82.46,82.416,0.5]
[1772999980014,0.1,82.46,82.416,0.47290261]
[1772999980203,0.2,82.46,82.416,0.47290261]
[1772999981624,0.2,82.46,82.419,0.47290261]
[1772999983110,0.1,82.459,82.422,0.47290261]
[1772999985124,0.1,82.459,82.424,0.47290261]
[1772999987520,0.1,82.46,82.426,0.47290261]
[1772999988332,0.1,82.46,82.427,0.47290261]
[1772999990029,0.1,82.47,82.429,0.47290261]
[1772999992131,0.1,82.47,82.43,42.93317191]
[1772999992439,0.1,82.47,82.432,0.47290261]
[1772999993938,0.1,82.47,82.43,42.4602693]
[1772999993939,0.1,82.47,82.435,0.47290261]
[1772999994144,0.1,82.48,82.437,0.47290261]
[1772999995333,0.1,82.48,82.439,0.75722575]
[1772999995634,0.1,82.49,82.443,0.47290261]
[1772999996941,0.1,82.49,82.446,0.47290261]
[1772999998140,0.1,82.49,82.448,0.75722575]
[1772999998325,0.1,82.49,82.449,0.47290261]
[1772999999737,0.1,82.49,82.451,0.28432314]
[1773000000038,0.1,82.49,82.452,0.47290261]
[1773000000240,0.4,82.49,82.452,0.47290261]
[1773000000446,0.3,82.489,82.452,0.47290261]
[1773000001826,0.1,82.49,82.454,0.47290261]
[1773000002128,0.4,82.49,82.454,0.47290261]
[1773000002328,0.3,82.489,82.454,0.47290261]
[1773000002728,0.1,82.49,82.455,0.47261694]
[1773000003225,0.1,82.5,82.455,0.47261694]
[1773000003851,0.3,82.499,82.458,0.47261694]
[1773000004343,0.1,82.5,82.458,0.47261694]
[1773000004638,0.3,82.499,82.458,0.47261694]
[1773000004842,0.3,82.498,82.458,0.47261694]
[1773000005027,0.1,82.5,82.458,0.47261694]
[1773000006041,0.3,82.499,82.46,0.45465499]
[1773000006244,0.3,82.489,82.438,0.45465499]
[1773000006428,0.3,82.489,82.439,0.45465499]
[1773000006621,0.1,82.5,82.394,0.45465499]
[1773000006622,0.3,82.469,82.394,0.45465499]
[1773000006824,0.3,82.459,82.395,0.45465499]
[1773000007025,0.3,82.459,82.401,60.67816957]
[1773000007237,0.3,82.459,82.402,0.45465499]
[1773000007748,0.3,82.459,82.403,0.45465499]
[1773000007948,0.3,82.459,82.383,1.21384266]
[1773000007949,0.3,82.457,82.405,0.45465499]
[1773000008325,0.3,82.449,82.405,0.45465499]
[1773000008528,0.3,82.449,82.406,0.45465499]
[1773000010245,12.12870986,82.449,82.407,42.47212008]
[1773000010451,60.91335634,82.469,82.407,42.47212008]
[1773000010452,0.3,82.477,82.412,0.45465499]
[1773000011446,0.3,82.469,82.412,0.45465499]
[1773000012425,0.3,82.467,82.415,0.45465499]
[1773000012840,0.3,82.449,82.413,12.13400798]
[1773000013730,0.3,82.449,82.41,12.58910469]
[1773000013934,0.3,82.449,82.411,0.45465499]
[1773000014246,0.3,82.439,82.41,12.1344497]
[1773000014545,4.51905267,82.44,82.405,0.45465499]
[1773000014546,0.3,82.437,82.406,12.13503871]
[1773000014749,4.51905267,82.43,82.401,12.13576573]
[1773000015047,0.3,82.429,82.401,12.13576573]
[1773000015427,0.3,82.429,82.402,0.45465499]
[1773000015629,40.25614885,82.438,82.402,0.45465499]
[1773000016336,40.25614885,82.438,82.403,0.5]
[1773000016537,4.51905267,82.46,82.405,0.5]
[1773000016737,4.51905267,82.46,82.406,0.5]
[1773000016934,4.51905267,82.45,82.406,0.5]
[1773000018973,4.51905267,82.45,82.39,0.28432314]
[1773000018974,60.61486238,82.489,82.409,0.5]
[1773000019274,30.31101632,82.479,82.409,0.5]
[1773000019477,4.51905267,82.47,82.409,0.5]
[1773000020175,0.28432314,82.478,82.409,0.5]
[1773000020367,4.51905267,82.47,82.409,0.5]
[1773000022271,4.51905267,82.46,82.411,0.5]
[1773000022775,0.28432314,82.468,82.411,0.5]
[1773000023978,42.44018964,82.469,82.412,0.5]
[1773000024676,4.51905267,82.47,82.412,0.5]
[1773000024877,4.51905267,82.46,82.415,0.5]
[1773000026473,0.28432314,82.459,82.415,0.5]
[1773000026984,42.44585121,82.458,82.417,0.5]
[1773000027687,4.51905267,82.45,82.417,0.5]
[1773000029385,12.12870986,82.449,82.417,0.5]
[1773000031188,42.45048453,82.449,82.419,0.5]
[1773000031679,4.51905267,82.45,82.419,0.5]
[1773000033183,12.12870986,82.449,82.419,0.5]
[1773000034894,12.12870986,82.449,82.421,0.5]
[1773000037576,12.12870986,82.449,82.39,0.28432314]
[1773000037577,4.51905267,82.44,82.397,0.5]
[1773000037895,42.45048453,82.449,82.397,0.5]
[1773000041583,4.52234228,82.45,82.399,0.5]
[1773000043298,4.52234228,82.44,82.399,0.5]
[1773000043588,12.1301811,82.439,82.401,0.5]
[1773000044982,12.1301811,82.439,82.403,0.5]
[1773000045298,42.45563385,82.439,82.403,0.5]
[1773000046487,42.45563385,82.439,82.391,0.5]
[1773000046488,4.52234228,82.43,82.391,0.5]
[1773000046689,4.52234228,82.42,82.394,0.5]
[1773000047194,12.13312464,82.419,82.394,0.5]
[1773000047806,12.13312464,82.419,82.39,12.13729655]
[1773000048003,12.13312464,82.419,82.391,0.5]
[1773000050597,12.13312464,82.419,82.366,3.69383402]
[1773000050598,42.4520292,82.446,82.393,0.5]
[1773000050787,4.52234228,82.44,82.393,0.5]
[1773000051498,4.52234228,82.43,82.393,0.5]
[1773000053789,42.46078442,82.429,82.393,0.5]
[1773000053989,42.46078442,82.429,82.395,0.5]
[1773000056011,4.52234228,82.42,82.395,0.5]
[1773000056707,4.52234228,82.42,82.397,0.5]
[1773000057215,4.52234228,82.42,82.392,0.5]
[1773000057902,4.52234228,82.41,82.382,0.5]
[1773000058108,12.13459694,82.409,82.382,0.5]
[1773000058409,4.52234228,82.4,82.373,0.5]
[1773000058795,42.47108931,82.409,82.373,0.5]
[1773000058994,4.52234228,82.4,82.373,0.5]
[1773000059610,4.52234228,82.4,82.368,0.5]
[1773000060690,0.28432314,82.408,82.368,0.5]
[1773000060887,4.52234228,82.41,82.368,0.5]
[1773000061204,12.13327185,82.418,82.37,0.5]
[1773000064198,12.13165269,82.429,82.372,0.5]
[1773000064406,12.13165269,82.429,82.376,0.5]
[1773000066309,4.52234228,82.42,82.379,0.5]
[1773000068894,12.13312464,82.419,82.381,0.5]
[1773000071714,42.46593624,82.419,82.383,0.5]
[1773000073816,42.46593624,82.419,82.385,0.5]
[1773000075323,42.46593624,82.419,82.387,0.5]
[1773000075612,12.13312464,82.419,82.387,0.5]
[1773000077397,6.33151499,82.458,82.389,0.5]
[1773000077398,12.1301811,82.439,82.389,0.5]
[1773000078206,30.3210073,82.452,82.396,0.5]
[1773000079122,4.52234228,82.45,82.399,0.5]
[1773000081803,12.12870986,82.449,82.401,0.5]
[1773000082413,42.43504406,82.479,82.412,4.82477569]
[1773000082621,42.43504406,82.479,82.416,0.5]
[1773000084321,42.43504406,82.479,82.423,4.82477569]
[1773000084522,42.43504406,82.479,82.427,0.5]
[1773000085607,42.43504406,82.479,82.284,33.52658379]
[1773000085608,4.52234228,82.47,82.429,0.5]
[1773000085917,0.28432314,82.479,82.429,0.5]
[1773000086126,4.52234228,82.47,82.429,0.5]
[1773000086316,0.28432314,82.479,82.429,0.5]
[1773000087822,42.43555856,82.478,82.431,0.5]
[1773000088910,42.43555856,82.478,82.433,0.5]
[1773000090431,0.28432314,82.489,82.435,0.5]
[1773000093127,42.43041411,82.488,82.437,0.5]
[1773000096033,42.43041411,82.488,82.439,0.5]
[1773000097331,42.43041411,82.488,82.438,42.45614885]
[1773000097332,12.12297546,82.488,82.441,0.5]
[1773000097517,12.12297546,82.488,82.445,0.5]
[1773000098332,4.52234228,82.49,82.447,0.5]
[1773000098937,4.52234228,82.48,82.447,0.5]
[1773000099937,42.43504406,82.479,82.447,0.5]
[1773000103622,4.51844317,82.48,82.447,0.5]
[1773000104429,4.51844317,82.48,82.442,0.5]
[1773000106053,4.51844317,82.46,82.427,0.5]
[1773000106340,4.51844317,82.44,82.421,0.5]
[1773000106541,4.51844317,82.45,82.421,0.5]
[1773000107643,12.12870986,82.449,82.421,0.5]
[1773000107842,4.51844317,82.44,82.415,12.63362083]
[1773000108341,4.51844317,82.44,82.416,0.5]
[1773000108548,4.51844317,82.44,82.397,0.5]
[1773000108747,4.51844317,82.43,82.397,0.5]
[1773000109749,12.13165269,82.429,82.398,0.5]
[1773000111940,4.51844317,82.44,82.4,0.5]
[1773000112833,0.28432314,82.449,82.4,0.5]
[1773000114846,42.45048453,82.449,82.402,0.5]
[1773000115154,4.51844317,82.43,82.402,0.5]
[1773000115451,0.28432314,82.448,82.362,60.70710159]
[1773000115452,4.51844317,82.42,82.396,0.5]
[1773000116348,4.51844317,82.43,82.396,0.5]
[1773000117137,12.13165269,82.429,82.398,0.5]
[1773000117854,42.46078442,82.429,82.398,0.5]
[1773000118544,4.51844317,82.42,82.398,0.5]
[1773000118767,42.46078442,82.429,82.398,0.5]
[1773000119448,4.51844317,82.42,82.393,0.5]
[1773000121160,0.28432314,82.428,82.393,0.5]
[1773000121657,4.51844317,82.42,82.393,0.5]
[1773000122455,42.46181469,82.427,82.393,0.5]
[1773000122648,4.51844317,82.42,82.393,0.5]
[1773000123535,42.46593624,82.419,82.384,12.13820677]
[1773000123742,42.46593624,82.419,82.385,0.5]
[1773000126753,42.46593624,82.419,82.367,0.5]
[1773000126754,4.51844317,82.4,82.367,0.5]
[1773000127057,0.28432314,82.418,82.367,0.5]
[1773000127858,42.46593624,82.419,82.367,0.5]
[1773000128058,0.28432314,82.418,82.369,0.5]
[1773000128640,4.51844317,82.41,82.369,0.5]
[1773000128835,4.51844317,82.4,82.369,0.5]
[1773000130262,42.47624364,82.399,82.369,0.5]
[1773000134366,4.51844317,82.39,82.369,0.5]
[1773000136063,12.13754263,82.389,82.369,0.5]
[1773000138368,12.13691404,82.394,82.371,0.5]
[1773000140370,12.13606961,82.399,82.371,0.5]
[1773000141576,12.13606961,82.399,82.372,12.14004758]
[1773000141870,12.13606961,82.399,82.373,0.5]
[1773000146672,4.51844317,82.39,82.351,0.5]
[1773000146877,42.47624364,82.399,82.351,0.5]
[1773000147967,4.51844317,82.39,82.351,0.5]
[1773000148761,4.51844317,82.39,82.352,42.5004857]
[1773000148960,4.51844317,82.39,82.353,0.5]
[1773000149276,0.28432314,82.398,82.355,0.5]
[1773000149462,4.51844317,82.39,82.355,0.5]
[1773000149880,30.34017403,82.399,82.355,0.5]
[1773000150256,4.51844317,82.39,82.355,0.5]
[1773000153387,12.13754263,82.389,82.357,0.5]
[1773000155785,12.13754263,82.389,82.359,0.5]
[1773000157469,4.51844317,82.37,82.35,0.2]
[1773000157673,0.28432314,82.359,82.331,0.5]
[1773000158067,4.51844317,82.35,82.33,0.7]
[1773000158261,4.51844317,82.35,82.331,0.5]
[1773000158678,4.51844317,82.36,82.332,0.5]
[1773000159964,12.14196384,82.359,82.332,0.5]
[1773000161373,0.28432314,82.369,82.334,0.5]
[1773000161577,12.14004758,82.372,82.334,0.5]
[1773000161774,4.51844317,82.37,82.334,0.5]
[1773000162874,12.14048974,82.369,82.336,0.5]
[1773000163284,3.69383402,82.389,82.336,0.5]
[1773000163487,30.34596617,82.384,82.336,0.5]
[1773000163804,4.51844317,82.38,82.336,0.5]
[1773000164683,4.51844317,82.37,82.336,0.5]
[1773000165596,12.14048974,82.369,82.338,0.5]
[1773000166698,12.14048974,82.369,82.34,0.5]
[1773000169298,4.53030122,82.36,82.334,0.5]
[1773000170075,4.53030122,82.36,82.33,0.2]
[1773000170302,4.53030122,82.35,82.33,0.2]
[1773000171200,12.14343829,82.349,82.33,0.2]
[1773000171405,12.14343829,82.349,82.32,0.2]
[1773000171704,42.50203402,82.349,82.32,0.2]
[1773000172913,12.14343829,82.349,82.321,0.5]
[1773000175503,12.14343829,82.349,82.322,12.1474211]
[1773000175697,12.14343829,82.349,82.323,0.5]
[1773000176087,12.14211127,82.358,82.323,0.5]
[1773000176798,12.14211127,82.358,82.325,0.5]
[1773000177305,4.53030122,82.35,82.325,0.5]
[1773000177489,12.14211127,82.358,82.325,0.5]
[1773000179205,4.53030122,82.35,82.325,0.5]
[1773000180407,0.47637836,82.349,82.32,0.2]
[1773000181602,0.47637836,82.347,82.321,12.14756866]
[1773000181783,12.14245846,82.356,82.321,12.14756866]
[1773000182481,12.14245846,82.356,82.322,0.47925245]
[1773000182705,0.47734244,82.355,82.322,0.47925245]
[1773000183709,0.47734244,82.353,82.324,0.49397165]
[1773000186497,0.4743665,82.351,82.326,0.49125133]
[1773000187817,12.14299591,82.352,82.326,0.49125133]
[1773000188007,0.4743665,82.38,82.326,0.49125133]
[1773000188515,0.4743665,82.378,82.328,0.49125133]
[1773000190206,12.13901601,82.379,82.329,0.49125133]
[1773000191809,30.82122942,82.381,82.33,42.51184257]
[1773000192006,0.4743665,82.38,82.331,0.49125133]
[1773000193015,12.13768995,82.388,82.335,0.49125133]
[1773000193401,0.4743665,82.387,82.335,0.49125133]
[1773000195608,0.4743665,82.385,82.338,0.49125133]
[1773000198504,0.4743665,82.383,82.34,0.49125133]
[1773000201532,0.4743665,82.381,82.342,0.49125133]
[1773000204525,0.4743665,82.379,82.344,0.49125133]
[1773000208629,0.4743665,82.377,82.346,0.49125133]
[1773000210522,0.4743665,82.375,82.348,0.49125133]
[1773000211632,0.4743665,82.375,82.347,12.14373322]
[1773000211937,0.4743665,82.375,82.347,12.63498455]
[1773000212114,0.4743665,82.375,82.348,0.49125133]
[1773000213120,0.45591357,82.373,82.35,0.49811996]
[1773000213315,30.34799922,82.378,82.35,0.49811996]
[1773000213316,0.45591357,82.399,82.35,0.49811996]
[1773000213519,0.45591357,82.398,82.35,0.49811996]
[1773000214925,0.45591357,82.396,82.352,0.49811996]
[1773000215422,12.13636418,82.397,82.352,0.49811996]
[1773000215616,12.1356676,82.402,82.354,0.49811996]
[1773000215821,12.59098342,82.406,82.355,0.49811996]
[1773000216940,12.59098342,82.406,82.358,0.49811996]
[1773000217847,11.53506985,82.406,82.36,0.49811996]
[1773000218027,30.33003836,82.427,82.362,0.49811996]
[1773000218227,0.45591357,82.419,82.362,0.49811996]
[1773000218431,0.45591357,82.399,82.356,12.14240613]
[1773000218632,4.53030122,82.4,82.286,6.32467447]
[1773000218633,0.45591357,82.369,82.324,0.49811996]
[1773000218822,0.45591357,82.367,82.327,0.49811996]
[1773000219026,0.45591357,82.367,82.328,0.49811996]
[1773000223254,0.45591357,82.367,82.33,0.49811996]
[1773000224046,0.45591357,82.365,82.33,0.49811996]
[1773000225551,0.45591357,82.359,82.331,12.1460932]
[1773000226554,0.45591357,82.359,82.331,12.64421316]
[1773000226755,0.45591357,82.359,82.332,0.49811996]
[1773000227436,0.45591357,82.358,82.334,0.49811996]
[1773000228256,0.45591357,82.364,82.334,0.49811996]
[1773000229940,0.45591357,82.364,82.336,0.49811996]
[1773000232357,0.45591357,82.362,82.338,0.49811996]
[1773000233357,0.45591357,82.362,82.339,12.64303306]
[1773000233955,0.45591357,82.359,82.31,0.2]
[1773000234160,0.45591357,82.349,82.324,12.14712598]
[1773000236666,12.14358575,82.348,82.324,12.14712598]
[1773000236844,0.45591357,82.347,82.324,12.14712598]
[1773000238365,0.45591357,82.345,82.32,0.2]
[1773000238548,0.45591357,82.345,82.321,12.14756866]
[1773000238744,0.45591357,82.345,82.321,12.64568862]
[1773000240160,0.45591357,82.345,82.322,0.49811996]
[1773000240662,0.45591357,82.345,82.323,12.14727354]
[1773000240871,0.45591357,82.345,82.324,0.49811996]
[1773000242551,0.45591357,82.345,82.323,12.14727354]
[1773000242746,0.46534342,82.343,82.323,12.14727354]
[1773000243268,0.46534342,82.343,82.32,0.2]
[1773000243461,0.46534342,82.343,82.32,12.3475877]
[1773000243658,0.46534342,82.343,82.32,12.81439319]
[1773000243863,0.46534342,82.343,82.321,0.46680549]
[1773000244370,0.46534342,82.343,82.32,12.3475877]
[1773000244565,0.46534342,82.339,82.31,0.2]
[1773000244768,0.46534342,82.329,82.31,0.2]
[1773000245269,0.45099552,82.319,82.3,0.2]
[1773000245964,0.45099552,82.329,82.302,0.4620148]
[1773000246269,0.45099552,82.334,82.302,0.4620148]
[1773000246964,12.14579816,82.333,82.303,12.15022538]
[1773000247267,0.45099552,82.329,82.3,0.6620148]
[1773000247468,0.45099552,82.329,82.301,12.61253544]
[1773000248048,0.45099552,82.329,82.3,0.2]
[1773000248463,0.45099552,82.319,82.3,0.2]
[1773000249262,0.45099552,82.317,82.3,0.2]
[1773000251662,0.45099552,82.315,82.3,0.2]
[1773000254976,0.45099552,82.313,82.3,0.2]
[1773000255955,0.45099552,82.313,82.29,0.2]
[1773000257874,0.45099552,82.311,82.29,0.2]
[1773000258467,0.45099552,82.311,82.29,0.6620148]
[1773000258862,0.45099552,82.311,82.291,0.4620148]
[1773000259062,0.45099552,82.311,82.29,0.2]
[1773000261064,0.45099552,82.309,82.29,0.2]
[1773000262388,0.45099552,82.299,82.28,0.2]
[1773000262676,0.45099552,82.306,82.282,0.4620148]
[1773000263382,0.45099552,82.304,82.282,0.4620148]
[1773000263595,0.45099552,82.304,82.283,12.15317866]
[1773000263759,0.45099552,82.304,82.284,0.4620148]
[1773000265681,12.15022538,82.303,82.284,0.4620148]
[1773000265988,12.6012209,82.303,82.284,0.4620148]
[1773000266864,0.45099552,82.302,82.284,0.4620148]
[1773000268080,12.60138345,82.302,82.284,0.4620148]
[1773000268291,0.45099552,82.301,82.284,0.4620148]
[1773000268864,0.45099552,82.301,82.28,12.35349018]
[1773000269063,4.53133508,82.29,82.271,0.4620148]
[1773000269267,0.45099552,82.289,82.271,0.4620148]
[1773000272466,0.45099552,82.289,82.27,0.2]
[1773000272974,12.15110931,82.298,82.272,0.49859533]
[1773000273184,0.48372975,82.3,82.272,0.49859533]
[1773000273780,0.48372975,82.3,82.271,12.15495131]
[1773000273781,4.53133508,82.32,82.29,0.49859533]
[1773000274572,12.14786379,82.319,82.29,0.49859533]
[1773000274990,12.14786379,82.319,82.292,0.49859533]
[1773000275878,0.48372975,82.318,82.292,0.49859533]
[1773000277394,30.36414443,82.334,82.294,0.49859533]
[1773000277395,0.48372975,82.323,82.294,0.49859533]
[1773000277898,5.01506483,82.32,82.294,0.49859533]
[1773000278372,5.01506483,82.32,82.296,0.49859533]
[1773000278570,17.16288744,82.32,82.296,0.49859533]
[1773000278978,0.48372975,82.319,82.296,0.49859533]
[1773000282280,0.48372975,82.319,82.298,0.49859533]
[1773000283289,0.48372975,82.317,82.282,0.49859533]
[1773000284493,12.14830652,82.316,82.284,0.49859533]
[1773000285491,12.63203627,82.316,82.284,0.49859533]
[1773000285885,0.48372975,82.315,82.284,0.49859533]
[1773000286090,0.48372975,82.315,82.271,30.38725418]
[1773000286091,0.48372975,82.299,82.271,0.49859533]
[1773000286277,0.48372975,82.299,82.272,0.49859533]
[1773000286588,0.48372975,82.297,82.272,0.49859533]
[1773000286977,0.48372975,82.297,82.274,0.49859533]
[1773000289700,0.48372975,82.289,82.27,0.2]
[1773000290203,0.48372975,82.295,82.271,0.49859533]
[1773000293491,12.15155418,82.294,82.271,0.49859533]
[1773000294496,0.48372975,82.293,82.271,0.49859533]
[1773000294700,0.48372975,82.284,82.255,0.49859533]
[1773000294900,0.48372975,82.284,82.25,0.2]
[1773000294901,0.48372975,82.269,82.251,0.49859533]
[1773000295291,0.48372975,82.269,82.25,0.2]
[1773000296981,0.48372975,82.267,82.25,0.2]
[1773000300206,0.48372975,82.267,82.251,12.15790689]
[1773000300907,0.48372975,82.267,82.252,0.49859533]
[1773000301302,4.53809253,82.27,82.252,0.49859533]
[1773000301902,5.02182228,82.27,82.253,12.15761127]
[1773000302105,0.48372975,82.27,82.254,0.49859533]
[1773000302485,0.48372975,82.281,82.254,0.49859533]
[1773000306601,0.48372975,82.281,82.256,0.45089564]
[1773000307411,0.47198345,82.286,82.256,0.45089564]
[1773000307608,0.47198345,82.287,82.256,0.45089564]
[1773000307812,0.47198345,82.269,82.251,0.45089564]
[1773000308005,0.47198345,82.269,82.25,0.2]
[1773000308201,0.47198345,82.249,82.211,0.45089564]
[1773000308393,0.47198345,82.239,82.21,0.4730851]
[1773000308703,0.47198345,82.237,82.211,12.16382235]
[1773000308912,0.47198345,82.237,82.212,0.45089564]
[1773000310292,0.47198345,82.237,82.214,0.45089564]
[1773000311094,12.15864863,82.246,82.214,0.45089564]
[1773000311318,0.47198345,82.267,82.214,0.45089564]
[1773000311493,0.47198345,82.267,82.213,42.57234256]
[1773000311494,0.47198345,82.279,82.224,0.45089564]
[1773000311989,0.47198345,82.263,82.224,0.45089564]
[1773000312511,0.47198345,82.262,82.226,0.45089564]
[1773000313106,0.47198345,82.259,82.226,0.45089564]
[1773000314614,0.47198345,82.259,82.228,0.45089564]
[1773000314921,12.15687227,82.258,82.228,0.45089564]
[1773000315091,0.47198345,82.257,82.228,0.45089564]
[1773000316002,0.47198345,82.255,82.23,0.45089564]
[1773000316621,12.15663248,82.26,82.23,0.45089564]
[1773000317331,12.62861593,82.26,82.23,0.45089564]
[1773000317695,0.47198345,82.259,82.232,0.45089564]
[1773000319825,0.47198345,82.257,82.232,0.45089564]
[1773000321124,12.15716786,82.256,82.226,0.45089564]
[1773000321324,0.47198345,82.255,82.226,0.45089564]
[1773000323734,0.47198345,82.249,82.227,0.45089564]
[1773000325134,0.47198345,82.249,82.222,12.61304674]
[1773000325335,0.47198345,82.249,82.223,0.45089564]
[1773000325824,0.47198345,82.249,82.225,0.45089564]
[1773000326214,12.15753551,82.254,82.225,0.45089564]
[1773000326634,12.15689728,82.258,82.225,0.45089564]
[1773000327732,0.47198345,82.257,82.227,0.45089564]
[1773000328807,0.28432314,82.268,82.21,0.4730851]
[1773000328808,12.62782129,82.265,82.229,0.45089564]
[1773000329010,0.47198345,82.264,82.229,0.45089564]
[1773000329210,0.47198345,82.259,82.229,0.45089564]
[1773000331033,0.47198345,82.257,82.231,0.45089564]
[1773000332126,0.47198345,82.257,82.21,0.4730851]